fUST/lending_fUST_20250505
["ID","MTS","AMOUNT","RATE_DAILY","PERIOD"]
[359948434,1746445667089,-8927.97,0.00035616,14]
[359948435,1746445667113,-8927.97,0.00035616,14]
[359948436,1746445667135,-8927.97,0.00035616,14]
[359948437,1746445667157,-528.2,0.00035616,14]
[359948438,1746445667179,-8927.97,0.00035616,14]
[359948439,1746445667200,-986.56,0.00035616,14]
[359948440,1746445667222,-8927.97,0.00035616,14]
[359948441,1746445667245,-151.0,0.00035616,14]
[359948442,1746445667268,-8927.97,0.00035616,14]
[359948443,1746445667290,-151.0,0.00035616,14]
[359948444,1746445667315,-8927.97,0.00035616,14]
[359948445,1746445667337,-151.0,0.00035616,14]
[359948446,1746445667360,-4949.88550142,0.00035616,14]
[359948452,1746445769115,-160.0,0.00026574,3]
[359948453,1746445769137,-160.0,0.00026574,3]
[359948458,1746445832217,-313.81875325,0.00027,3]
[359948460,1746445832227,-313.81875325,0.00027,3]
[359948462,1746445832236,-427.484567,0.00027397,2]
[359948464,1746445832246,-313.81875325,0.00028,10]
[359948465,1746445832255,-427.484567,0.00033165,2]
[359948467,1746445832265,-742.45041269,0.00033516,2]
[359948469,1746445832275,-1043.4522722,0.00033835,4]
[359948470,1746445832284,-160.0,0.00035513,2]
[359948472,1746445832294,-841.77443764,0.00035513,2]
[359948474,1746445832305,-421.83547488,0.00035513,2]
[359948475,1746445832314,-160.0,0.00035513,2]
[359948476,1746445832323,-79355.52265733,0.00035516,2]
[359948478,1746445832476,-10283.352974,0.00035516,2]
[359948508,1746445838274,-355.13997622,0.00035416,2]
[359948509,1746445838284,-442.54862835,0.00035515,7]
[359948510,1746445838293,-393.02107431,0.00035515,7]
[359948511,1746445838303,-4074.63741092,0.00035516,2]
[359948512,1746445838316,-13896.35559598,0.00035516,2]
[359948513,1746445838328,-231287.04324564,0.00035516,2]
[359948514,1746445838339,-182.23035355,0.00035516,2]
[359948515,1746445838353,-392.7428235,0.00035516,2]
[359948516,1746445838363,-1100.0,0.00035534,60]
[359948517,1746445838373,-150.194,0.00035583,2]
[359948518,1746445838383,-403.0,0.00035583,2]
[359948519,1746445838395,-635.0,0.000356,2]
[359948520,1746445838405,-522.12,0.000356,14]
[359948521,1746445838415,-1733.51540352,0.00035606,3]
[359948522,1746445838426,-151.0,0.00035606,14]
[359948523,1746445838437,-151.0,0.00035606,14]
[359948524,1746445838447,-151.0,0.00035615,14]
[359948525,1746445838457,-151.0,0.00035615,14]
[359948526,1746445838467,-151.0,0.00035616,14]
[359948527,1746445838477,-151.0,0.00035616,14]
[359948528,1746445838487,-400.0,0.00035616,14]
[359948529,1746445838497,-400.0,0.00035616,14]
[359948530,1746445838507,-400.0,0.00035616,14]
[359948531,1746445838517,-400.0,0.00035616,14]
[359948532,1746445838527,-400.0,0.00035616,14]
[359948533,1746445838538,-400.0,0.00035616,14]
[359948534,1746445838548,-400.0,0.00035616,14]
[359948535,1746445838559,-400.0,0.00035616,14]
[359948536,1746445838570,-400.0,0.00035616,14]
[359948537,1746445838580,-400.0,0.00035616,14]
[359948538,1746445838589,-400.0,0.00035616,14]
[359948539,1746445838599,-400.0,0.00035616,14]
[359948540,1746445838610,-301.64541736,0.00035616,14]
[359948541,1746445838620,-171.29941998,0.00035616,14]
[359948542,1746445838630,-461.76,0.00035616,14]
[359948543,1746445838641,-400.0,0.00035616,14]
[359948544,1746445838653,-400.0,0.00035616,14]
[359948545,1746445838662,-400.0,0.00035616,14]
[359948546,1746445838673,-400.0,0.00035616,14]
[359948547,1746445838683,-400.0,0.00035616,14]
[359948548,1746445838693,-400.0,0.00035616,14]
[359948549,1746445838703,-400.0,0.00035616,14]
[359948550,1746445838714,-516.37898553,0.00035616,14]
[359948551,1746445838724,-242.23981622,0.00035616,14]
[359948552,1746445838733,-400.0,0.00035616,14]
[359948553,1746445838743,-400.0,0.00035616,14]
[359948554,1746445838753,-400.0,0.00035616,14]
[359948555,1746445838762,-400.0,0.00035616,14]
[359948556,1746445838772,-400.7205851,0.00035616,14]
[359948557,1746445838782,-400.0,0.00035616,14]
[359948558,1746445838792,-400.0,0.00035616,14]
[359948559,1746445838802,-403.94257819,0.00035616,14]
[359948560,1746445838812,-400.0,0.00035616,14]
[359948561,1746445838823,-400.0,0.00035616,14]
[359948562,1746445838833,-859.63,0.00035616,14]
[359948563,1746445838843,-400.0,0.00035616,14]
[359948564,1746445838853,-400.0,0.00035616,14]
[359948565,1746445838863,-400.0,0.00035616,14]
[359948566,1746445838873,-403.60428464,0.00035616,14]
[359948567,1746445838883,-400.0,0.00035616,14]
[359948568,1746445838893,-400.0,0.00035616,14]
[359948569,1746445838903,-400.0,0.00035616,14]
[359948570,1746445838912,-400.0,0.00035616,14]
[359948571,1746445838922,-400.0,0.00035616,14]
[359948572,1746445838932,-212.47654655,0.00035616,14]
[359948573,1746445838941,-400.0,0.00035616,14]
[359948574,1746445838951,-1047.07,0.00035616,14]
[359948575,1746445838961,-428.02004708,0.00035616,14]
[359948576,1746445838970,-400.0,0.00035616,14]
[359948577,1746445838980,-400.0,0.00035616,14]
[359948578,1746445838991,-400.0,0.00035616,14]
[359948579,1746445839000,-440.38,0.00035616,14]
[359948580,1746445839010,-400.0,0.00035616,14]
[359948581,1746445839020,-400.0,0.00035616,14]
[359948582,1746445839031,-400.0,0.00035616,14]
[359948583,1746445839041,-400.0,0.00035616,14]
[359948584,1746445839052,-847.52,0.00035616,14]
[359948585,1746445839062,-400.0,0.00035616,14]
[359948586,1746445839072,-400.0,0.00035616,14]
[359948587,1746445839082,-400.0,0.00035616,14]
[359948588,1746445839091,-400.0,0.00035616,14]
[359948589,1746445839101,-482.5,0.00035616,14]
[359948590,1746445839111,-400.0,0.00035616,14]
[359948591,1746445839121,-400.0,0.00035616,14]
[359948592,1746445839131,-400.0,0.00035616,14]
[359948593,1746445839140,-584.75,0.00035616,14]
[359948594,1746445839150,-2778.11,0.00035616,2]
[359948595,1746445839160,-400.0,0.00035616,14]
[359948596,1746445839170,-400.0,0.00035616,14]
[359948597,1746445839180,-471.15,0.00035616,14]
[359948598,1746445839189,-622.12,0.00035616,14]
[359948599,1746445839199,-400.0,0.00035616,14]
[359948600,1746445839209,-400.0,0.00035616,14]
[359948601,1746445839219,-547.45,0.00035616,14]
[359948602,1746445839229,-400.0,0.00035616,14]
[359948603,1746445839239,-400.0,0.00035616,14]
[359948604,1746445839248,-428.58101547,0.00035616,14]
[359948605,1746445839259,-400.0,0.00035616,14]
[359948606,1746445839268,-403.12679645,0.00035616,14]
[359948607,1746445839278,-400.0,0.00035616,14]
[359948608,1746445839288,-2823.51,0.00035616,14]
[359948609,1746445839299,-400.0,0.00035616,14]
[359948610,1746445839309,-400.0,0.00035616,14]
[359948611,1746445839318,-1486.62,0.00035616,14]
[359948612,1746445839328,-399.64593122,0.00035616,14]
[359948613,1746445839344,-0.35406878,0.00035616,14]
[359948614,1746445839357,-340.82207384,0.00035616,14]
[359948615,1746445839382,-169.29999015,0.00035616,14]
[359948616,1746445839393,-151.0,0.00035616,14]
[359948617,1746445839403,-534.68,0.00035616,14]
[359948618,1746445839413,-151.0,0.00035616,14]
[359948619,1746445839423,-400.0,0.00035616,14]
[359948620,1746445839434,-400.0,0.00035616,14]
[359948621,1746445839444,-151.0,0.00035616,14]
[359948622,1746445839454,-400.0,0.00035616,14]
[359948623,1746445839464,-151.0,0.00035616,14]
[359948624,1746445839474,-151.0,0.00035616,14]
[359948625,1746445839483,-400.0,0.00035616,14]
[359948626,1746445839493,-400.0,0.00035616,14]
[359948627,1746445839503,-400.0,0.00035616,14]
[359948628,1746445839512,-400.0,0.00035616,14]
[359948629,1746445839522,-275.437842,0.00035616,14]
[359948630,1746445839532,-792.06,0.00035616,14]
[359948631,1746445839542,-1000.0,0.00035616,14]
[359948632,1746445839552,-6920.73,0.00035616,14]
[359948633,1746445839562,-594.03,0.00035616,14]
[359948634,1746445839574,-302.64660055,0.00035616,14]
[359948635,1746445839584,-480.93,0.00035616,14]
[359948636,1746445839595,-400.0,0.00035616,14]
[359948637,1746445839605,-400.0,0.00035616,14]
[359948638,1746445839616,-400.0,0.00035616,14]
[359948639,1746445839625,-400.0,0.00035616,14]
[359948640,1746445839635,-400.0,0.00035616,14]
[359948642,1746445839647,-197.036821,0.00035616,14]
[359948644,1746445839657,-413.95301629,0.00035616,14]
[359948645,1746445839666,-197.036821,0.00035616,14]
[359948646,1746445839676,-197.036821,0.00035616,14]
[359948647,1746445839686,-197.036821,0.00035616,14]
[359948648,1746445839696,-400.0,0.00035616,14]
[359948649,1746445839706,-9551.19,0.00035616,14]
[359948650,1746445839715,-2548.32,0.00035616,14]
[359948652,1746445839725,-197.036821,0.00035616,14]
[359948653,1746445839735,-400.0,0.00035616,14]
[359948654,1746445839745,-677.11,0.00035616,14]
[359948656,1746445839755,-197.036821,0.00035616,14]
[359948658,1746445839764,-400.0,0.00035616,14]
[359948659,1746445839773,-197.036821,0.00035616,14]
[359948660,1746445839783,-197.036821,0.00035616,14]
[359948661,1746445839792,-197.036821,0.00035616,14]
[359948662,1746445839802,-186.1858671,0.00035616,14]
[359948663,1746445839812,-197.036821,0.00035616,14]
[359948664,1746445839821,-400.0,0.00035616,14]
[359948665,1746445839831,-400.0,0.00035616,14]
[359948666,1746445839840,-400.0,0.00035616,14]
[359948667,1746445839851,-254.658006,0.00035616,14]
[359948669,1746445839860,-254.658006,0.00035616,14]
[359948670,1746445839870,-151.0,0.00035616,14]
[359948671,1746445839880,-151.0,0.00035616,14]
[359948672,1746445839890,-151.0,0.00035616,14]
[359948673,1746445839900,-254.658006,0.00035616,14]
[359948674,1746445839910,-151.0,0.00035616,14]
[359948676,1746445839920,-254.658006,0.00035616,14]
[359948678,1746445839930,-151.0,0.00035616,14]
[359948680,1746445839939,-254.658006,0.00035616,14]
[359948681,1746445839949,-400.0,0.00035616,14]
[359948682,1746445839960,-254.658006,0.00035616,14]
[359948683,1746445839969,-400.0,0.00035616,14]
[359948684,1746445839979,-254.658006,0.00035616,14]
[359948685,1746445839998,-254.658006,0.00035616,14]
[359948686,1746445840010,-254.658006,0.00035616,14]
[359948687,1746445840021,-254.658006,0.00035616,14]
[359948688,1746445840031,-400.0,0.00035616,14]
[359948689,1746445840043,-400.0,0.00035616,14]
[359948690,1746445840053,-400.0,0.00035616,14]
[359948691,1746445840063,-400.0,0.00035616,14]
[359948692,1746445840074,-500.0,0.00035616,14]
[359948693,1746445840084,-500.0,0.00035616,14]
[359948694,1746445840094,-500.0,0.00035616,14]
[359948695,1746445840104,-400.0,0.00035616,14]
[359948696,1746445840114,-400.0,0.00035616,14]
[359948697,1746445840125,-280.76133008,0.00035616,14]
[359948698,1746445840135,-3529.4,0.00035616,14]
[359948699,1746445840158,-400.0,0.00035616,14]
[359948700,1746445840169,-400.0,0.00035616,14]
[359948702,1746445840179,-400.0,0.00035616,14]
[359948704,1746445840189,-314.52545903,0.00035616,12]
[359948705,1746445840198,-400.0,0.00035616,14]
[359948706,1746445840207,-400.0,0.00035616,14]
[359948707,1746445840216,-400.0,0.00035616,14]
[359948708,1746445840226,-400.0,0.00035616,14]
[359948709,1746445840235,-402.96708623,0.00035616,14]
[359948710,1746445840244,-500.0,0.00035616,14]
[359948711,1746445840253,-400.0,0.00035616,14]
[359948712,1746445840263,-400.0,0.00035616,14]
[359948714,1746445840273,-400.0,0.00035616,14]
[359948715,1746445840282,-3496.52,0.00035616,14]
[359948717,1746445840292,-2182.36,0.00035616,14]
[359948719,1746445840301,-1611.18,0.00035616,14]
[359948720,1746445840311,-2637.47,0.00035616,14]
[359948721,1746445840321,-400.0,0.00035616,14]
[359948722,1746445840331,-400.0,0.00035616,14]
[359948723,1746445840340,-400.0,0.00035616,14]
[359948725,1746445840352,-400.0,0.00035616,14]
[359948727,1746445840362,-500.0,0.00035616,3]
[359948729,1746445840372,-400.0,0.00035616,14]
[359948731,1746445840382,-416.98344774,0.00035616,14]
[359948733,1746445840391,-400.0,0.00035616,14]
[359948735,1746445840401,-500.0,0.00035616,3]
[359948737,1746445840411,-400.0,0.00035616,14]
[359948739,1746445840420,-476.63,0.00035616,14]
[359948741,1746445840430,-400.0,0.00035616,14]
[359948743,1746445840442,-435.62660611,0.00035616,14]
[359948745,1746445840451,-407.99626087,0.00035616,14]
[359948747,1746445840460,-400.0,0.00035616,14]
[359948749,1746445840470,-400.0,0.00035616,14]
[359948751,1746445840479,-400.0,0.00035616,14]
[359948753,1746445840489,-169.15,0.00035616,14]
[359948755,1746445840498,-400.0,0.00035616,14]
[359948757,1746445840508,-504.42079598,0.00035616,14]
[359948759,1746445840517,-501.66015232,0.00035616,14]
[359948761,1746445840527,-400.0,0.00035616,14]
[359948763,1746445840537,-400.0,0.00035616,14]
[359948765,1746445840546,-400.0,0.00035616,14]
[359948767,1746445840556,-400.0,0.00035616,14]
[359948770,1746445840566,-400.0,0.00035616,14]
[359948772,1746445840577,-400.0,0.00035616,14]
[359948774,1746445840586,-414.23224368,0.00035616,14]
[359948776,1746445840596,-400.0,0.00035616,14]
[359948778,1746445840605,-400.0,0.00035616,14]
[359948780,1746445840615,-400.0,0.00035616,14]
[359948782,1746445840624,-400.0,0.00035616,14]
[359948784,1746445840634,-400.0,0.00035616,14]
[359948786,1746445840644,-400.0,0.00035616,14]
[359948788,1746445840654,-458.16,0.00035616,14]
[359948790,1746445840664,-400.0,0.00035616,14]
[359948792,1746445840673,-400.0,0.00035616,14]
[359948794,1746445840683,-406.93917326,0.00035616,14]
[359948796,1746445840692,-526.22,0.00035616,14]
[359948798,1746445840702,-400.0,0.00035616,14]
[359948800,1746445840712,-1935.8,0.00035616,14]
[359948802,1746445840722,-400.0,0.00035616,14]
[359948804,1746445840731,-3791.83,0.00035616,14]
[359948822,1746445840741,-400.0,0.00035616,14]
[359948824,1746445840899,-400.0,0.00035616,14]
[359948826,1746445840909,-267.88969925,0.00035616,14]
[359948828,1746445840918,-1411.13,0.00035616,14]
[359948830,1746445840927,-400.0,0.00035616,14]
[359948832,1746445840936,-568.68,0.00035616,14]
[359948834,1746445840946,-400.0,0.00035616,14]
[359948836,1746445840955,-400.0,0.00035616,14]
[359948838,1746445840964,-435.05134238,0.00035616,14]
[359948840,1746445840974,-400.0,0.00035616,14]
[359948842,1746445840983,-1696.48,0.00035616,14]
[359948844,1746445840992,-400.0,0.00035616,14]
[359948846,1746445841002,-1459.98,0.00035616,14]
[359948848,1746445841012,-1182.54,0.00035616,14]
[359948850,1746445841025,-400.0,0.00035616,14]
[359948852,1746445841038,-833.33,0.00035616,14]
[359948854,1746445841048,-400.0,0.00035616,14]
[359948856,1746445841057,-2159.19,0.00035616,14]
[359948858,1746445841067,-1525.71,0.00035616,14]
[359948860,1746445841077,-151.0,0.00035616,14]
[359948862,1746445841087,-2162.0,0.00035616,14]
[359948864,1746445841096,-400.0,0.00035616,14]
[359948866,1746445841106,-530.69,0.00035616,14]
[359948868,1746445841116,-400.0,0.00035616,14]
[359948870,1746445841125,-400.0,0.00035616,14]
[359948872,1746445841135,-428.87543579,0.00035616,14]
[359948874,1746445841145,-500.0,0.00035616,14]
[359948877,1746445841155,-400.0,0.00035616,14]
[359948879,1746445841165,-466.42,0.00035616,14]
[359948881,1746445841175,-400.0,0.00035616,14]
[359948883,1746445841184,-350.34277277,0.00035616,14]
[359948885,1746445841194,-331.40739042,0.00035616,14]
[359948887,1746445841204,-400.0,0.00035616,14]
[359948889,1746445841214,-400.0,0.00035616,14]
[359948891,1746445841223,-507.50578314,0.00035616,14]
[359948893,1746445841233,-400.0,0.00035616,14]
[359948895,1746445841244,-944.17,0.00035616,14]
[359948897,1746445841253,-400.0,0.00035616,14]
[359948899,1746445841263,-400.0,0.00035616,14]
[359948901,1746445841273,-604.59,0.00035616,14]
[359948903,1746445841282,-402.74987584,0.00035616,14]
[359948905,1746445841292,-400.0,0.00035616,14]
[359948907,1746445841303,-400.0,0.00035616,14]
[359948909,1746445841313,-400.0,0.00035616,14]
[359948911,1746445841322,-2779.93,0.00035616,14]
[359948913,1746445841332,-400.0,0.00035616,14]
[359948915,1746445841342,-921.3,0.00035616,14]
[359948917,1746445841355,-1539.88,0.00035616,14]
[359948920,1746445841365,-400.0,0.00035616,14]
[359948922,1746445841375,-400.0,0.00035616,14]
[359948923,1746445841385,-400.0,0.00035616,14]
[359948926,1746445841395,-500.0,0.00035616,14]
[359948928,1746445841405,-418.12434121,0.00035616,14]
[359948930,1746445841416,-400.0,0.00035616,14]
[359948932,1746445841429,-400.0,0.00035616,14]
[359948934,1746445841438,-1217.85,0.00035616,14]
[359948936,1746445841448,-4454.88,0.00035616,14]
[359948938,1746445841458,-400.0,0.00035616,14]
[359948940,1746445841468,-401.7,0.00035616,14]
[359948942,1746445841477,-400.0,0.00035616,14]
[359948944,1746445841487,-151.0,0.00035616,14]
[359948946,1746445841497,-1152.62,0.00035616,14]
[359948948,1746445841508,-151.0,0.00035616,14]
[359948950,1746445841518,-151.0,0.00035616,14]
[359948952,1746445841527,-400.0,0.00035616,14]
[359948954,1746445841537,-151.0,0.00035616,14]
[359948956,1746445841547,-151.0,0.00035616,14]
[359948958,1746445841557,-400.0,0.00035616,14]
[359948960,1746445841567,-197.04034,0.00035616,14]
[359948962,1746445841576,-400.0,0.00035616,14]
[359948964,1746445841585,-1231.44,0.00035616,14]
[359948966,1746445841594,-400.0,0.00035616,14]
[359948968,1746445841604,-2071.13,0.00035616,14]
[359948970,1746445841613,-2310.8,0.00035616,14]
[359948972,1746445841623,-909.75,0.00035616,14]
[359948974,1746445841632,-909.75,0.00035616,14]
[359948976,1746445841642,-909.75,0.00035616,14]
[359948978,1746445841651,-909.75,0.00035616,14]
[359948980,1746445841661,-909.75,0.00035616,14]
[359948982,1746445841670,-909.75,0.00035616,14]
[359948984,1746445841680,-909.75,0.00035616,14]
[359948986,1746445841690,-909.75,0.00035616,14]
[359948988,1746445841699,-909.75,0.00035616,14]
[359948990,1746445841708,-446.19,0.00035616,14]
[359948992,1746445841717,-909.75,0.00035616,14]
[359948994,1746445841726,-909.75,0.00035616,14]
[359948996,1746445841736,-909.75,0.00035616,14]
[359948998,1746445841746,-909.75,0.00035616,14]
[359949000,1746445841755,-909.75,0.00035616,14]
[359949002,1746445841765,-909.75,0.00035616,14]
[359949004,1746445841774,-506.19,0.00035616,14]
[359949006,1746445841784,-909.75,0.00035616,14]
[359949008,1746445841793,-909.75,0.00035616,14]
[359949010,1746445841803,-909.75,0.00035616,14]
[359949012,1746445841813,-909.75,0.00035616,14]
[359949014,1746445841822,-909.75,0.00035616,14]
[359949016,1746445841832,-909.75,0.00035616,14]
[359949018,1746445841841,-909.75,0.00035616,14]
[359949020,1746445841850,-151.0,0.00035616,14]
[359949022,1746445841860,-909.75,0.00035616,14]
[359949024,1746445841869,-151.0,0.00035616,14]
[359949026,1746445841879,-909.85177377,0.00035616,14]
[359949028,1746445841888,-400.0,0.00035616,14]
[359949030,1746445841897,-151.0,0.00035616,14]
[359949032,1746445841907,-1850.89,0.00035616,14]
[359949034,1746445841916,-151.0,0.00035616,14]
[359949036,1746445841927,-151.0,0.00035616,14]
[359949038,1746445841937,-400.0,0.00035616,14]
[359949040,1746445841947,-400.0,0.00035616,14]
[359949042,1746445841956,-945.45,0.00035616,14]
[359949044,1746445841965,-207.63058347,0.00035616,14]
[359949046,1746445841975,-564.65,0.00035616,14]
[359949048,1746445841985,-169.34703786,0.00035616,14]
[359949050,1746445841994,-167.59209837,0.00035616,14]
[359949052,1746445842003,-250.77274752,0.00035616,14]
[359949054,1746445842013,-151.0,0.00035616,14]
[359949057,1746445842023,-151.0,0.00035616,14]
[359949059,1746445842032,-500.0,0.00035616,14]
[359949061,1746445842042,-443.25,0.00035616,14]
[359949063,1746445842051,-4805.41,0.00035616,14]
[359949065,1746445842060,-400.0,0.00035616,14]
[359949067,1746445842070,-151.0,0.00035616,14]
[359949069,1746445842079,-400.0,0.00035616,14]
[359949071,1746445842089,-500.0,0.00035616,14]
[359949073,1746445842098,-400.0,0.00035616,14]
[359949075,1746445842107,-404.24,0.00035616,14]
[359949077,1746445842116,-400.0,0.00035616,14]
[359949079,1746445842125,-151.0,0.00035616,14]
[359949081,1746445842135,-400.0,0.00035616,14]
[359949083,1746445842144,-400.0,0.00035616,14]
[359949085,1746445842153,-264.41960271,0.00035616,14]
[359949087,1746445842162,-400.0,0.00035616,14]
[359949089,1746445842171,-400.0,0.00035616,14]
[359949091,1746445842180,-400.0,0.00035616,14]
[359949093,1746445842190,-400.0,0.00035616,14]
[359949095,1746445842199,-400.0,0.00035616,14]
[359949097,1746445842208,-400.0,0.00035616,14]
[359949099,1746445842220,-400.0,0.00035616,14]
[359949101,1746445842229,-400.0,0.00035616,14]
[359949103,1746445842239,-400.0,0.00035616,14]
[359949105,1746445842248,-1812.36,0.00035616,14]
[359949107,1746445842257,-400.0,0.00035616,14]
[359949109,1746445842267,-400.0,0.00035616,14]
[359949111,1746445842276,-400.0,0.00035616,14]
[359949113,1746445842286,-29855.5,0.00035616,14]
[359949115,1746445842295,-400.0,0.00035616,14]
[359949117,1746445842305,-1426.81,0.00035616,14]
[359949119,1746445842314,-400.0,0.00035616,14]
[359949121,1746445842324,-400.0,0.00035616,14]
[359949123,1746445842333,-400.0,0.00035616,8]
[359949125,1746445842343,-400.0,0.00035616,14]
[359949128,1746445842356,-400.0,0.00035616,14]
[359949129,1746445842366,-400.0,0.00035616,14]
[359949132,1746445842376,-400.0,0.00035616,14]
[359949134,1746445842385,-400.0,0.00035616,14]
[359949136,1746445842395,-400.0,0.00035616,14]
[359949137,1746445842404,-400.0,0.00035616,14]
[359949140,1746445842414,-400.0,0.00035616,14]
[359949142,1746445842425,-855.38,0.00035616,14]
[359949144,1746445842435,-400.0,0.00035616,14]
[359949146,1746445842445,-400.0,0.00035616,14]
[359949148,1746445842454,-400.0,0.00035616,14]
[359949150,1746445842463,-2479.52,0.00035616,14]
[359949152,1746445842473,-400.0,0.00035616,14]
[359949154,1746445842482,-400.0,0.00035616,14]
[359949156,1746445842492,-400.0,0.00035616,14]
[359949158,1746445842501,-400.0,0.00035616,14]
[359949160,1746445842511,-400.0,0.00035616,14]
[359949162,1746445842520,-151.0,0.00035616,14]
[359949163,1746445842530,-400.0,0.00035616,14]
[359949165,1746445842539,-250.82137242,0.00035616,14]
[359949167,1746445842548,-500.0,0.00035616,14]
[359949168,1746445842557,-400.0,0.00035616,14]
[359949169,1746445842567,-1796.47,0.00035616,14]
[359949170,1746445842576,-151.32069639,0.00035616,14]
[359949171,1746445842585,-400.0,0.00035616,14]
[359949172,1746445842594,-500.0,0.00035616,14]
[359949173,1746445842604,-400.0,0.00035616,14]
[359949174,1746445842613,-166.60402618,0.00035616,14]
[359949175,1746445842622,-400.0,0.00035616,14]
[359949177,1746445842631,-203.80305062,0.00035616,14]
[359949178,1746445842640,-500.0,0.00035616,14]
[359949179,1746445842650,-1141.43,0.00035616,14]
[359949180,1746445842669,-400.0,0.00035616,14]
[359949181,1746445842679,-400.0,0.00035616,14]
[359949183,1746445842689,-447.17,0.00035616,14]
[359949185,1746445842699,-151.0,0.00035616,14]
[359949187,1746445842709,-2955.02,0.00035616,14]
[359949188,1746445842718,-510.78358609,0.00035616,14]
[359949189,1746445842728,-400.0,0.00035616,14]
[359949191,1746445842738,-400.0,0.00035616,14]
[359949193,1746445842747,-400.0,0.00035616,14]
[359949195,1746445842757,-7976.56,0.00035616,14]
[359949197,1746445842766,-401.06877182,0.00035616,14]
[359949199,1746445842776,-400.0,0.00035616,2]
[359949201,1746445842785,-306.14520155,0.00035616,14]
[359949203,1746445842795,-12535.79,0.00035616,14]
[359949205,1746445842805,-400.0,0.00035616,14]
[359949207,1746445842814,-442.70747204,0.00035616,14]
[359949209,1746445842824,-401.2924761,0.00035616,14]
[359949211,1746445842834,-400.0,0.00035616,14]
[359949213,1746445842844,-400.0,0.00035616,14]
[359949215,1746445842855,-378.19587091,0.00035616,2]
[359949217,1746445842867,-524.37,0.00035616,14]
[359949219,1746445842877,-400.0,0.00035616,14]
[359949221,1746445842887,-526.88,0.00035616,14]
[359949222,1746445842897,-449.4311,0.00035619,30]
[359949223,1746445842907,-500.0,0.00035643,14]
[359949224,1746445842917,-151.0,0.00035643,14]
[359949226,1746445842928,-500.0,0.00035643,14]
[359949228,1746445842938,-151.0,0.00035643,14]
[359949230,1746445842948,-151.0,0.00035643,14]
[359949232,1746445842958,-151.0,0.00035643,14]
[359949234,1746445842967,-151.0,0.00035643,3]
[359949236,1746445842977,-500.0,0.00035643,3]
[359949238,1746445842986,-500.0,0.00035643,3]
[359949240,1746445842995,-151.0,0.00035643,14]
[359949242,1746445843008,-2162.0,0.00035643,14]
[359949244,1746445843018,-500.0,0.00035643,14]
[359949246,1746445843027,-196.611786,0.00035643,14]
[359949248,1746445843037,-201.0391838,0.00035643,14]
[359949250,1746445843046,-500.0,0.00035643,14]
[359949252,1746445843057,-151.0,0.00035643,14]
[359949254,1746445843066,-500.0,0.00035643,14]
[359949256,1746445843077,-241.39031166,0.00035643,14]
[359949258,1746445843087,-151.0,0.00035643,14]
[359949260,1746445843096,-500.0,0.00035643,14]
[359949262,1746445843107,-500.0,0.00035643,14]
[359949263,1746445843117,-500.0,0.00035643,14]
[359949264,1746445843127,-151.0,0.00035643,14]